[Event "Titled Tuesday Blitz April 19 Early 2022"]
[White "Paravyan, David"]
[Black "Sharafiev, Azat"]
[WhiteFideId "4194985"]
[BlackFideId "4186214"]
[WhiteElo "2569"]
[BlackElo "2299"]
[Result "1-0"]
[Round "05"]
[TimeControl "180+1"]
[Date "2022.04.19"]
[WhiteClock "0:00:08"]
[BlackClock "0:00:16"]

1. e4 {[%clk 0:03:00]}  c6 {[%clk 0:02:58]} 2. d4 {[%clk 0:03:00]}  d5 {[%clk 0:02:58]} 3. e5 {[%clk 0:03:01]}  Bf5 {[%clk 0:02:59]} 4. Nf3 {[%clk 0:03:01]}  e6 {[%clk 0:02:59]} 5. Be2 {[%clk 0:03:00]}  Nd7 {[%clk 0:02:59]} 6. O-O {[%clk 0:02:59]}  a6 {[%clk 0:02:59]} 7. Nbd2 {[%clk 0:02:49]}  c5 {[%clk 0:02:58]} 8. c4 {[%clk 0:02:46]}  Ne7 {[%clk 0:02:52]} 9. a3 {[%clk 0:02:34]}  Rc8 {[%clk 0:02:22]} 10. dxc5 {[%clk 0:02:08]}  Nxc5 {[%clk 0:02:22]} 11. b4 {[%clk 0:02:08]}  Nd3 {[%clk 0:02:16]} 12. c5 {[%clk 0:02:00]}  Nf4 {[%clk 0:02:14]} 13. Nb3 {[%clk 0:01:57]}  Nxe2+ {[%clk 0:02:13]} 14. Qxe2 {[%clk 0:01:58]}  Nc6 {[%clk 0:01:53]} 15. Nfd4 {[%clk 0:01:54]}  Nxd4 {[%clk 0:01:50]} 16. Nxd4 {[%clk 0:01:55]}  Be4 {[%clk 0:01:48]} 17. Bb2 {[%clk 0:01:21]}  Be7 {[%clk 0:01:42]} 18. Rac1 {[%clk 0:01:19]}  O-O {[%clk 0:01:41]} 19. Rc3 {[%clk 0:01:14]}  a5 {[%clk 0:01:00]} 20. Nb5 {[%clk 0:01:01]}  axb4 {[%clk 0:00:50]} 21. axb4 {[%clk 0:01:02]}  Ra8 {[%clk 0:00:41]} 22. Nd6 {[%clk 0:01:00]}  Bg6 {[%clk 0:00:41]} 23. Rb3 {[%clk 0:00:20]}  Qd7 {[%clk 0:00:35]} 24. Bd4 {[%clk 0:00:19]}  f6 {[%clk 0:00:28]} 25. Re1 {[%clk 0:00:18]}  Kh8 {[%clk 0:00:26]} 26. h3 {[%clk 0:00:12]}  fxe5 {[%clk 0:00:23]} 27. Bxe5 {[%clk 0:00:13]}  Ra4 {[%clk 0:00:21]} 28. Qd2 {[%clk 0:00:10]}  b6 {[%clk 0:00:15]} 29. Qd4 {[%clk 0:00:10]}  Bf6 {[%clk 0:00:15]} 30. Qb2 {[%clk 0:00:06]}  bxc5 {[%clk 0:00:14]} 31. bxc5 {[%clk 0:00:07]}  Qc6 {[%clk 0:00:14]} 32. Rb8 {[%clk 0:00:05]}  Ra8 {[%clk 0:00:15]} 33. Rxa8 {[%clk 0:00:05]}  Rxa8 {[%clk 0:00:14]} 34. Bxf6 {[%clk 0:00:06]}  gxf6 {[%clk 0:00:15]} 35. Qxf6+ {[%clk 0:00:06]}  Kg8 {[%clk 0:00:16]} 36. Qxe6+ {[%clk 0:00:07]}  Kg7 {[%clk 0:00:16]} 37. Qe5+ {[%clk 0:00:07]}  Kg8 {[%clk 0:00:16]} 38. Qe6+ {[%clk 0:00:08]}  Kg7 {[%clk 0:00:16]} 39. Nf5+ {[%clk 0:00:08]} 1-0


[Site "https://www.chess.com"]

[Event "Titled Tuesday Blitz April 19 Early 2022"]
[White "Pesotskiy, Mikhail"]
[Black "Mika, Tomasz"]
[WhiteFideId "34164453"]
[BlackFideId "1132970"]
[WhiteElo "2010"]
[BlackElo "2116"]
[Result "1-0"]
[Round "05"]
[TimeControl "180+1"]
[Date "2022.04.19"]
[WhiteClock "0:00:16"]
[BlackClock "0:00:08"]

1. d4 {[%clk 0:02:38]}  d5 {[%clk 0:02:59]} 2. c4 {[%clk 0:02:38]}  e6 {[%clk 0:02:59]} 3. Nc3 {[%clk 0:02:39]}  c5 {[%clk 0:02:59]} 4. cxd5 {[%clk 0:02:38]}  exd5 {[%clk 0:02:59]} 5. Nf3 {[%clk 0:02:38]}  Nc6 {[%clk 0:02:59]} 6. Be3 {[%clk 0:02:36]}  cxd4 {[%clk 0:02:53]} 7. Nxd4 {[%clk 0:02:36]}  Nf6 {[%clk 0:02:53]} 8. g3 {[%clk 0:02:36]}  Be7 {[%clk 0:02:46]} 9. Bg2 {[%clk 0:02:36]}  O-O {[%clk 0:02:46]} 10. O-O {[%clk 0:02:36]}  Ne5 {[%clk 0:02:43]} 11. b3 {[%clk 0:02:35]}  Qa5 {[%clk 0:02:32]} 12. Rc1 {[%clk 0:02:32]}  Bb4 {[%clk 0:02:28]} 13. Rc2 {[%clk 0:02:33]}  Bxc3 {[%clk 0:02:27]} 14. Bf4 {[%clk 0:02:22]}  Nc6 {[%clk 0:02:16]} 15. Nxc6 {[%clk 0:02:17]}  bxc6 {[%clk 0:02:16]} 16. Qc1 {[%clk 0:02:18]}  Bb4 {[%clk 0:01:54]} 17. Rxc6 {[%clk 0:02:19]}  Be6 {[%clk 0:01:49]} 18. Be5 {[%clk 0:00:47]}  Nd7 {[%clk 0:01:30]} 19. Bd4 {[%clk 0:00:47]}  h6 {[%clk 0:01:05]} 20. Qa1 {[%clk 0:00:45]}  Rfc8 {[%clk 0:00:55]} 21. Rfc1 {[%clk 0:00:20]}  Rxc6 {[%clk 0:00:51]} 22. Rxc6 {[%clk 0:00:21]}  Qb5 {[%clk 0:00:50]} 23. Rc2 {[%clk 0:00:22]}  f6 {[%clk 0:00:47]} 24. a4 {[%clk 0:00:20]}  Qb7 {[%clk 0:00:45]} 25. Qc1 {[%clk 0:00:20]}  Bd6 {[%clk 0:00:32]} 26. Rc6 {[%clk 0:00:18]}  Qb8 {[%clk 0:00:17]} 27. e4 {[%clk 0:00:19]}  Bf7 {[%clk 0:00:08]} 28. exd5 {[%clk 0:00:17]}  Ne5 {[%clk 0:00:07]} 29. Rc3 {[%clk 0:00:11]}  Qd8 {[%clk 0:00:05]} 30. f4 {[%clk 0:00:12]}  Nd7 {[%clk 0:00:04]} 31. Rc6 {[%clk 0:00:13]}  Nb6 {[%clk 0:00:03]} 32. h3 {[%clk 0:00:14]}  Rc8 {[%clk 0:00:03]} 33. Kh2 {[%clk 0:00:13]}  Rxc6 {[%clk 0:00:03]} 34. dxc6 {[%clk 0:00:14]}  Qc7 {[%clk 0:00:03]} 35. b4 {[%clk 0:00:14]}  Nc8 {[%clk 0:00:04]} 36. b5 {[%clk 0:00:13]}  Ne7 {[%clk 0:00:04]} 37. a5 {[%clk 0:00:13]}  h5 {[%clk 0:00:04]} 38. b6 {[%clk 0:00:13]}  axb6 {[%clk 0:00:05]} 39. axb6 {[%clk 0:00:14]}  Qc8 {[%clk 0:00:05]} 40. b7 {[%clk 0:00:14]}  Qc7 {[%clk 0:00:05]} 41. Ba7 {[%clk 0:00:14]}  h4 {[%clk 0:00:04]} 42. b8=Q+ {[%clk 0:00:14]}  Qxb8 {[%clk 0:00:04]} 43. Bxb8 {[%clk 0:00:15]}  hxg3+ {[%clk 0:00:05]} 44. Kxg3 {[%clk 0:00:16]}  Bxb8 {[%clk 0:00:06]} 45. c7 {[%clk 0:00:17]}  Bxc7 {[%clk 0:00:05]} 46. Qxc7 {[%clk 0:00:17]}  Nf5+ {[%clk 0:00:06]} 47. Kh2 {[%clk 0:00:18]}  Nh6 {[%clk 0:00:07]} 48. Be4 {[%clk 0:00:17]}  Kh8 {[%clk 0:00:07]} 49. Qd8+ {[%clk 0:00:18]}  Bg8 {[%clk 0:00:08]} 50. h4 {[%clk 0:00:18]}  Nf7 {[%clk 0:00:09]} 51. Qf8 {[%clk 0:00:17]}  Nh6 {[%clk 0:00:09]} 52. Bd5 {[%clk 0:00:17]}  f5 {[%clk 0:00:08]} 53. Bxg8 {[%clk 0:00:16]} 1-0


[Site "https://www.chess.com"]

[Event "Titled Tuesday Blitz April 19 Early 2022"]
[White "Petrova, Irina"]
[Black "Mikhalsky, Vladimir"]
[WhiteFideId "14124122"]
[BlackFideId "14144352"]
[WhiteElo "1993"]
[BlackElo "2301"]
[Result "0-1"]
[Round "05"]
[TimeControl "180+1"]
[Date "2022.04.19"]
[WhiteClock "0:00:10"]
[BlackClock "0:00:17"]

1. e4 {[%clk 0:03:00]}  c5 {[%clk 0:02:58]} 2. Nf3 {[%clk 0:03:00]}  Nc6 {[%clk 0:02:58]} 3. Bb5 {[%clk 0:02:59]}  g6 {[%clk 0:02:57]} 4. Bxc6 {[%clk 0:02:59]}  dxc6 {[%clk 0:02:56]} 5. d3 {[%clk 0:02:59]}  Bg7 {[%clk 0:02:54]} 6. Nc3 {[%clk 0:02:59]}  e5 {[%clk 0:02:53]} 7. Be3 {[%clk 0:02:59]}  b6 {[%clk 0:02:53]} 8. h3 {[%clk 0:02:59]}  Ne7 {[%clk 0:02:48]} 9. Qd2 {[%clk 0:02:59]}  f6 {[%clk 0:02:48]} 10. Nh2 {[%clk 0:02:45]}  Be6 {[%clk 0:02:36]} 11. f4 {[%clk 0:02:40]}  exf4 {[%clk 0:02:31]} 12. Bxf4 {[%clk 0:02:41]}  g5 {[%clk 0:02:29]} 13. Bg3 {[%clk 0:02:34]}  Qd7 {[%clk 0:02:23]} 14. a4 {[%clk 0:02:25]}  h6 {[%clk 0:02:04]} 15. a5 {[%clk 0:01:35]}  O-O {[%clk 0:02:02]} 16. O-O {[%clk 0:01:27]}  f5 {[%clk 0:02:01]} 17. exf5 {[%clk 0:01:23]}  Nxf5 {[%clk 0:02:00]} 18. Bf2 {[%clk 0:01:22]}  Nd4 {[%clk 0:01:52]} 19. axb6 {[%clk 0:01:17]}  axb6 {[%clk 0:01:51]} 20. Rxa8 {[%clk 0:01:18]}  Rxa8 {[%clk 0:01:51]} 21. Ne4 {[%clk 0:01:18]}  Rf8 {[%clk 0:01:21]} 22. c3 {[%clk 0:01:10]}  Nb3 {[%clk 0:01:19]} 23. Qd1 {[%clk 0:01:10]}  Bd5 {[%clk 0:01:06]} 24. Ng4 {[%clk 0:01:06]}  Kh8 {[%clk 0:00:52]} 25. Bg3 {[%clk 0:00:46]}  Rxf1+ {[%clk 0:00:42]} 26. Qxf1 {[%clk 0:00:47]}  c4 {[%clk 0:00:40]} 27. Nef6 {[%clk 0:00:42]}  Qe6 {[%clk 0:00:37]} 28. Nxd5 {[%clk 0:00:41]}  cxd5 {[%clk 0:00:33]} 29. dxc4 {[%clk 0:00:38]}  dxc4 {[%clk 0:00:30]} 30. Qd1 {[%clk 0:00:25]}  Nc5 {[%clk 0:00:27]} 31. Qd8+ {[%clk 0:00:24]}  Kh7 {[%clk 0:00:26]} 32. Kh2 {[%clk 0:00:21]}  Ne4 {[%clk 0:00:24]} 33. Bc7 {[%clk 0:00:18]}  h5 {[%clk 0:00:24]} 34. Ne3 {[%clk 0:00:15]}  Nc5 {[%clk 0:00:20]} 35. Nd5 {[%clk 0:00:12]}  Nd7 {[%clk 0:00:18]} 36. Nxb6 {[%clk 0:00:10]}  Nxb6 {[%clk 0:00:17]} 37. Bxb6 {[%clk 0:00:11]}  Qe5+ {[%clk 0:00:17]} 38. Kg1 {[%clk 0:00:10]}  Qe1+ {[%clk 0:00:17]} 39. Kh2 {[%clk 0:00:10]}  Be5+ {[%clk 0:00:17]} 0-1


[Site "https://www.chess.com"]

[Event "Titled Tuesday Blitz April 19 Early 2022"]
[White "Petrovic, Aleksa"]
[Black "Csonka, Balazs"]
[WhiteFideId "967629"]
[BlackFideId "742910"]
[WhiteElo "2198"]
[BlackElo "2404"]
[Result "0-1"]
[Round "05"]
[TimeControl "180+1"]
[Date "2022.04.19"]
[WhiteClock "0:01:02"]
[BlackClock "0:00:59"]

1. d4 {[%clk 0:03:00]}  d5 {[%clk 0:02:57]} 2. c4 {[%clk 0:03:00]}  e6 {[%clk 0:02:56]} 3. Nf3 {[%clk 0:03:00]}  Nf6 {[%clk 0:02:53]} 4. Nc3 {[%clk 0:03:00]}  Bb4 {[%clk 0:02:49]} 5. Qa4+ {[%clk 0:02:57]}  Nc6 {[%clk 0:02:48]} 6. e3 {[%clk 0:02:58]}  O-O {[%clk 0:02:46]} 7. Qc2 {[%clk 0:02:58]}  Re8 {[%clk 0:02:43]} 8. Bd2 {[%clk 0:02:58]}  a6 {[%clk 0:02:41]} 9. O-O-O {[%clk 0:02:57]}  Bf8 {[%clk 0:02:32]} 10. Ne5 {[%clk 0:02:36]}  Nb4 {[%clk 0:02:22]} 11. Qb3 {[%clk 0:02:29]}  dxc4 {[%clk 0:02:19]} 12. Bxc4 {[%clk 0:02:24]}  b5 {[%clk 0:02:18]} 13. Be2 {[%clk 0:02:22]}  Bb7 {[%clk 0:02:13]} 14. a3 {[%clk 0:02:20]}  Nbd5 {[%clk 0:02:08]} 15. f3 {[%clk 0:01:46]}  c5 {[%clk 0:01:52]} 16. dxc5 {[%clk 0:01:41]}  Bxc5 {[%clk 0:01:42]} 17. e4 {[%clk 0:01:40]}  Ne3 {[%clk 0:01:31]} 18. Bxe3 {[%clk 0:01:34]}  Bxe3+ {[%clk 0:01:31]} 19. Kb1 {[%clk 0:01:34]}  Qc7 {[%clk 0:01:28]} 20. Nd3 {[%clk 0:01:22]}  Red8 {[%clk 0:01:22]} 21. Nb4 {[%clk 0:01:18]}  Rxd1+ {[%clk 0:01:04]} 22. Bxd1 {[%clk 0:01:14]}  Rd8 {[%clk 0:01:00]} 23. Nxb5 {[%clk 0:01:04]}  Qc1+ {[%clk 0:00:58]} 24. Ka2 {[%clk 0:01:02]}  axb5 {[%clk 0:00:59]} 0-1


[Site "https://www.chess.com"]

[Event "Titled Tuesday Blitz April 19 Early 2022"]
[White "Przybylski, Wojciech"]
[Black "Friedel, Tom"]
[WhiteFideId "1117599"]
[BlackFideId "2002108"]
[WhiteElo "2133"]
[BlackElo "2310"]
[Result "1/2-1/2"]
[Round "05"]
[TimeControl "180+1"]
[Date "2022.04.19"]
[WhiteClock "0:00:12"]
[BlackClock "0:00:11"]

1. d4 {[%clk 0:03:00]}  d5 {[%clk 0:02:59]} 2. c4 {[%clk 0:02:59]}  e6 {[%clk 0:03:00]} 3. Nf3 {[%clk 0:02:59]}  Nf6 {[%clk 0:03:00]} 4. Nc3 {[%clk 0:02:59]}  Nbd7 {[%clk 0:02:56]} 5. g3 {[%clk 0:02:57]}  Be7 {[%clk 0:02:55]} 6. Bg2 {[%clk 0:02:57]}  O-O {[%clk 0:02:55]} 7. O-O {[%clk 0:02:57]}  dxc4 {[%clk 0:02:54]} 8. e4 {[%clk 0:02:57]}  Nb6 {[%clk 0:02:54]} 9. Qe2 {[%clk 0:02:55]}  Bd7 {[%clk 0:02:52]} 10. a4 {[%clk 0:02:54]}  a5 {[%clk 0:02:52]} 11. Ne5 {[%clk 0:02:51]}  Bc6 {[%clk 0:02:51]} 12. Nxc4 {[%clk 0:02:46]}  Nxc4 {[%clk 0:02:27]} 13. Qxc4 {[%clk 0:02:46]}  Bb4 {[%clk 0:02:23]} 14. Re1 {[%clk 0:02:38]}  h6 {[%clk 0:02:12]} 15. b3 {[%clk 0:02:29]}  Rc8 {[%clk 0:01:42]} 16. Bb2 {[%clk 0:02:29]}  Qe7 {[%clk 0:01:33]} 17. Rad1 {[%clk 0:02:19]}  Rfd8 {[%clk 0:01:28]} 18. h3 {[%clk 0:02:15]}  Qf8 {[%clk 0:01:24]} 19. Kh2 {[%clk 0:02:14]}  h5 {[%clk 0:01:12]} 20. Re3 {[%clk 0:02:10]}  Ba3 {[%clk 0:01:05]} 21. Ba1 {[%clk 0:02:09]}  Bb4 {[%clk 0:01:04]} 22. Nb5 {[%clk 0:02:00]}  Qe8 {[%clk 0:00:40]} 23. Na7 {[%clk 0:01:57]}  Ra8 {[%clk 0:00:34]} 24. Nxc6 {[%clk 0:01:57]}  bxc6 {[%clk 0:00:35]} 25. Bb2 {[%clk 0:01:50]}  Rab8 {[%clk 0:00:35]} 26. Qc2 {[%clk 0:01:47]}  Qf8 {[%clk 0:00:34]} 27. Qxc6 {[%clk 0:01:45]}  h4 {[%clk 0:00:32]} 28. d5 {[%clk 0:01:36]}  exd5 {[%clk 0:00:29]} 29. Bxf6 {[%clk 0:01:29]}  Rd6 {[%clk 0:00:29]} 30. Qxc7 {[%clk 0:01:23]}  Rxf6 {[%clk 0:00:29]} 31. Re2 {[%clk 0:00:50]}  Bd6 {[%clk 0:00:27]} 32. Qc3 {[%clk 0:00:44]}  Rxf2 {[%clk 0:00:20]} 33. Rxf2 {[%clk 0:00:40]}  hxg3+ {[%clk 0:00:20]} 34. Kh1 {[%clk 0:00:38]}  gxf2 {[%clk 0:00:21]} 35. e5 {[%clk 0:00:33]}  Bb4 {[%clk 0:00:20]} 36. Qg3 {[%clk 0:00:29]}  Qc5 {[%clk 0:00:18]} 37. Bxd5 {[%clk 0:00:25]}  Qxd5+ {[%clk 0:00:18]} 38. Rxd5 {[%clk 0:00:22]}  f1=Q+ {[%clk 0:00:18]} 39. Kh2 {[%clk 0:00:22]}  Qe2+ {[%clk 0:00:17]} 40. Qg2 {[%clk 0:00:22]}  Qxg2+ {[%clk 0:00:14]} 41. Kxg2 {[%clk 0:00:22]}  Re8 {[%clk 0:00:14]} 42. Kf3 {[%clk 0:00:22]}  Re6 {[%clk 0:00:15]} 43. Kf4 {[%clk 0:00:21]}  Kh7 {[%clk 0:00:15]} 44. Kf5 {[%clk 0:00:20]}  g6+ {[%clk 0:00:14]} 45. Kf4 {[%clk 0:00:20]}  Be7 {[%clk 0:00:14]} 46. Rd7 {[%clk 0:00:20]}  Kg7 {[%clk 0:00:11]} 47. Ra7 {[%clk 0:00:20]}  Bb4 {[%clk 0:00:12]} 48. h4 {[%clk 0:00:19]}  Kg8 {[%clk 0:00:11]} 49. Rc7 {[%clk 0:00:15]}  Kg7 {[%clk 0:00:11]} 50. Ra7 {[%clk 0:00:15]}  Rb6 {[%clk 0:00:11]} 51. Ke4 {[%clk 0:00:12]}  Re6 {[%clk 0:00:11]} 52. Kf4 {[%clk 0:00:12]} 1/2-1/2


[Site "https://www.chess.com"]

[Event "Titled Tuesday Blitz April 19 Early 2022"]
[White "Reprintsev, Alexander"]
[Black "Redor, Menandro"]
[WhiteFideId "14100541"]
[BlackFideId "5222010"]
[WhiteElo "2108"]
[BlackElo "1986"]
[Result "1-0"]
[Round "05"]
[TimeControl "180+1"]
[Date "2022.04.19"]
[WhiteClock "0:00:24"]
[BlackClock "0:00:08"]

1. e4 {[%clk 0:01:38]}  c6 {[%clk 0:03:00]} 2. Nc3 {[%clk 0:01:37]}  d5 {[%clk 0:03:00]} 3. Nf3 {[%clk 0:01:37]}  Bg4 {[%clk 0:02:57]} 4. h3 {[%clk 0:01:37]}  Bxf3 {[%clk 0:02:56]} 5. Qxf3 {[%clk 0:01:37]}  e6 {[%clk 0:02:55]} 6. b3 {[%clk 0:01:37]}  Nd7 {[%clk 0:02:53]} 7. Bb2 {[%clk 0:01:29]}  Ngf6 {[%clk 0:02:50]} 8. exd5 {[%clk 0:01:27]}  cxd5 {[%clk 0:02:48]} 9. g4 {[%clk 0:01:27]}  h6 {[%clk 0:02:47]} 10. h4 {[%clk 0:01:26]}  Ne5 {[%clk 0:02:45]} 11. Bb5+ {[%clk 0:01:23]}  Nc6 {[%clk 0:02:38]} 12. g5 {[%clk 0:01:20]}  hxg5 {[%clk 0:02:35]} 13. hxg5 {[%clk 0:01:21]}  Rxh1+ {[%clk 0:02:34]} 14. Qxh1 {[%clk 0:01:21]}  Nd7 {[%clk 0:02:29]} 15. g6 {[%clk 0:01:19]}  fxg6 {[%clk 0:02:22]} 16. O-O-O {[%clk 0:01:19]}  Qf6 {[%clk 0:02:19]} 17. Nxd5 {[%clk 0:01:15]}  Qe5 {[%clk 0:02:19]} 18. Bxe5 {[%clk 0:01:14]}  exd5 {[%clk 0:00:26]} 19. Bc7 {[%clk 0:00:40]}  Nd4 {[%clk 0:00:12]} 20. Re1+ {[%clk 0:00:31]}  Be7 {[%clk 0:00:11]} 21. Bxd7+ {[%clk 0:00:24]}  Kxd7 {[%clk 0:00:10]} 22. Qxd5+ {[%clk 0:00:24]}  Kxc7 {[%clk 0:00:08]} 23. Rxe7+ {[%clk 0:00:24]} 1-0


[Site "https://www.chess.com"]

[Event "Titled Tuesday Blitz April 19 Early 2022"]
[White "Richter, Nils"]
[Black "Omelja, Artem"]
[WhiteFideId "12990809"]
[BlackFideId "14119846"]
[WhiteElo "2243"]
[BlackElo "2382"]
[Result "1-0"]
[Round "05"]
[TimeControl "180+1"]
[Date "2022.04.19"]
[WhiteClock "0:00:20"]
[BlackClock "0:00:02"]

1. d4 {[%clk 0:02:04]}  d5 {[%clk 0:02:59]} 2. c4 {[%clk 0:02:03]}  c6 {[%clk 0:02:59]} 3. Nc3 {[%clk 0:02:03]}  e6 {[%clk 0:02:58]} 4. e3 {[%clk 0:02:02]}  Nf6 {[%clk 0:02:58]} 5. Nf3 {[%clk 0:02:01]}  Nbd7 {[%clk 0:02:56]} 6. Qc2 {[%clk 0:02:00]}  Bd6 {[%clk 0:02:54]} 7. Be2 {[%clk 0:02:00]}  O-O {[%clk 0:02:53]} 8. O-O {[%clk 0:01:59]}  dxc4 {[%clk 0:02:45]} 9. a4 {[%clk 0:01:58]}  e5 {[%clk 0:02:38]} 10. Bxc4 {[%clk 0:01:58]}  exd4 {[%clk 0:02:25]} 11. Nxd4 {[%clk 0:01:51]}  Ne5 {[%clk 0:02:21]} 12. Be2 {[%clk 0:01:50]}  Nfg4 {[%clk 0:02:11]} 13. h3 {[%clk 0:01:46]}  Nf6 {[%clk 0:01:25]} 14. Rd1 {[%clk 0:01:43]}  Qc7 {[%clk 0:01:18]} 15. Bd2 {[%clk 0:01:41]}  h6 {[%clk 0:01:13]} 16. Be1 {[%clk 0:01:41]}  a6 {[%clk 0:01:10]} 17. Rac1 {[%clk 0:01:34]}  Rd8 {[%clk 0:00:59]} 18. Nf5 {[%clk 0:01:30]}  Bf8 {[%clk 0:00:59]} 19. Rxd8 {[%clk 0:01:28]}  Qxd8 {[%clk 0:01:00]} 20. Rd1 {[%clk 0:01:29]}  Qc7 {[%clk 0:00:59]} 21. Ne4 {[%clk 0:01:23]}  Nxe4 {[%clk 0:00:39]} 22. Qxe4 {[%clk 0:01:24]}  Be6 {[%clk 0:00:38]} 23. Bc3 {[%clk 0:01:22]}  Ng6 {[%clk 0:00:38]} 24. Bh5 {[%clk 0:01:15]}  Re8 {[%clk 0:00:19]} 25. Nxh6+ {[%clk 0:01:13]}  Kh7 {[%clk 0:00:12]} 26. Ng4 {[%clk 0:00:59]}  Qc8 {[%clk 0:00:07]} 27. Ne5 {[%clk 0:00:55]}  Bf5 {[%clk 0:00:07]} 28. Qf3 {[%clk 0:00:46]}  Nxe5 {[%clk 0:00:06]} 29. Bxe5 {[%clk 0:00:43]}  Rxe5 {[%clk 0:00:07]} 30. Bxf7 {[%clk 0:00:43]}  Be4 {[%clk 0:00:02]} 31. Qg3 {[%clk 0:00:39]}  Qf5 {[%clk 0:00:02]} 32. Bb3 {[%clk 0:00:26]}  Be7 {[%clk 0:00:02]} 33. f3 {[%clk 0:00:20]} 1-0


[Site "https://www.chess.com"]

[Event "Titled Tuesday Blitz April 19 Early 2022"]
[White "Rom, Jasper"]
[Black "Derjabin, Ilja"]
[WhiteFideId "2023733"]
[BlackFideId "14104768"]
[WhiteElo "2233"]
[BlackElo "2341"]
[Result "1-0"]
[Round "05"]
[TimeControl "180+1"]
[Date "2022.04.19"]
[WhiteClock "0:00:12"]
[BlackClock "0:00:19"]

1. e4 {[%clk 0:03:00]}  c5 {[%clk 0:02:59]} 2. Nc3 {[%clk 0:03:00]}  e6 {[%clk 0:02:59]} 3. f4 {[%clk 0:03:00]}  d5 {[%clk 0:02:59]} 4. Nf3 {[%clk 0:02:58]}  d4 {[%clk 0:02:59]} 5. Nb1 {[%clk 0:02:51]}  Nc6 {[%clk 0:02:59]} 6. d3 {[%clk 0:02:51]}  f5 {[%clk 0:02:56]} 7. Nbd2 {[%clk 0:02:47]}  Nf6 {[%clk 0:02:54]} 8. g3 {[%clk 0:02:43]}  Ng4 {[%clk 0:02:38]} 9. Nb3 {[%clk 0:02:15]}  fxe4 {[%clk 0:02:03]} 10. dxe4 {[%clk 0:02:11]}  Be7 {[%clk 0:01:59]} 11. Bg2 {[%clk 0:02:00]}  O-O {[%clk 0:01:45]} 12. O-O {[%clk 0:01:57]}  Ne3 {[%clk 0:01:04]} 13. Bxe3 {[%clk 0:01:51]}  dxe3 {[%clk 0:01:04]} 14. c3 {[%clk 0:01:38]}  Qxd1 {[%clk 0:01:02]} 15. Rfxd1 {[%clk 0:01:37]}  a5 {[%clk 0:00:53]} 16. a4 {[%clk 0:01:29]}  c4 {[%clk 0:00:49]} 17. Nbd4 {[%clk 0:01:22]}  Nxd4 {[%clk 0:00:49]} 18. Nxd4 {[%clk 0:01:07]}  Ra6 {[%clk 0:00:48]} 19. Nb5 {[%clk 0:01:00]}  Bc5 {[%clk 0:00:41]} 20. Kh1 {[%clk 0:00:45]}  e5 {[%clk 0:00:29]} 21. f5 {[%clk 0:00:42]}  g6 {[%clk 0:00:28]} 22. g4 {[%clk 0:00:41]}  gxf5 {[%clk 0:00:28]} 23. exf5 {[%clk 0:00:35]}  Bxf5 {[%clk 0:00:28]} 24. gxf5 {[%clk 0:00:32]}  Rxf5 {[%clk 0:00:29]} 25. Rd8+ {[%clk 0:00:30]}  Kg7 {[%clk 0:00:29]} 26. Rd7+ {[%clk 0:00:29]}  Kf6 {[%clk 0:00:27]} 27. Nc7 {[%clk 0:00:22]}  e2 {[%clk 0:00:25]} 28. Nxa6 {[%clk 0:00:16]}  bxa6 {[%clk 0:00:25]} 29. Re1 {[%clk 0:00:15]}  Rf2 {[%clk 0:00:24]} 30. Rd2 {[%clk 0:00:13]}  Rf4 {[%clk 0:00:22]} 31. Rdxe2 {[%clk 0:00:12]}  Bd6 {[%clk 0:00:19]} 32. Rf1 {[%clk 0:00:12]} 1-0


[Site "https://www.chess.com"]

[Event "Titled Tuesday Blitz April 19 Early 2022"]
[White "Rottenwohrer Suarez, Juan"]
[Black "Janaszak, Dawid"]
[WhiteFideId "32068182"]
[BlackFideId "1119206"]
[WhiteElo "2158"]
[BlackElo "2199"]
[Result "0-1"]
[Round "05"]
[TimeControl "180+1"]
[Date "2022.04.19"]
[WhiteClock "0:00:03"]
[BlackClock "0:00:25"]

1. d4 {[%clk 0:02:56]}  Nf6 {[%clk 0:02:58]} 2. c4 {[%clk 0:02:57]}  g6 {[%clk 0:02:59]} 3. g3 {[%clk 0:02:43]}  Bg7 {[%clk 0:02:58]} 4. Bg2 {[%clk 0:02:37]}  O-O {[%clk 0:02:58]} 5. Nc3 {[%clk 0:02:33]}  d6 {[%clk 0:02:58]} 6. Nf3 {[%clk 0:02:29]}  c5 {[%clk 0:02:58]} 7. d5 {[%clk 0:02:25]}  e6 {[%clk 0:02:55]} 8. O-O {[%clk 0:02:20]}  Re8 {[%clk 0:02:51]} 9. Bf4 {[%clk 0:02:15]}  exd5 {[%clk 0:02:47]} 10. cxd5 {[%clk 0:01:57]}  a6 {[%clk 0:02:39]} 11. a4 {[%clk 0:01:56]}  Ne4 {[%clk 0:02:36]} 12. Rc1 {[%clk 0:01:24]}  Nxc3 {[%clk 0:02:34]} 13. bxc3 {[%clk 0:01:23]}  Bg4 {[%clk 0:02:30]} 14. h3 {[%clk 0:01:23]}  Bxf3 {[%clk 0:02:29]} 15. Bxf3 {[%clk 0:01:23]}  Be5 {[%clk 0:02:19]} 16. Bh6 {[%clk 0:01:16]}  Nd7 {[%clk 0:02:10]} 17. c4 {[%clk 0:01:16]}  Qf6 {[%clk 0:02:01]} 18. h4 {[%clk 0:01:11]}  Rab8 {[%clk 0:01:45]} 19. Rb1 {[%clk 0:01:11]}  Bd4 {[%clk 0:01:43]} 20. Bg5 {[%clk 0:01:07]}  Qg7 {[%clk 0:01:41]} 21. Bf4 {[%clk 0:01:05]}  Ne5 {[%clk 0:01:40]} 22. Bxe5 {[%clk 0:00:47]}  Qxe5 {[%clk 0:01:40]} 23. Kg2 {[%clk 0:00:46]}  Qe7 {[%clk 0:01:33]} 24. e3 {[%clk 0:00:46]}  Bg7 {[%clk 0:01:31]} 25. h5 {[%clk 0:00:47]}  Qg5 {[%clk 0:01:30]} 26. Rh1 {[%clk 0:00:45]}  Be5 {[%clk 0:01:22]} 27. Qd3 {[%clk 0:00:35]}  f5 {[%clk 0:01:19]} 28. Rh3 {[%clk 0:00:29]}  Bg7 {[%clk 0:01:10]} 29. Rbh1 {[%clk 0:00:29]}  Re7 {[%clk 0:01:05]} 30. Qb3 {[%clk 0:00:29]}  b6 {[%clk 0:00:56]} 31. Qb1 {[%clk 0:00:24]}  Qf6 {[%clk 0:00:53]} 32. hxg6 {[%clk 0:00:16]}  hxg6 {[%clk 0:00:54]} 33. g4 {[%clk 0:00:15]}  Rf7 {[%clk 0:00:40]} 34. gxf5 {[%clk 0:00:14]}  Qxf5 {[%clk 0:00:41]} 35. Qxf5 {[%clk 0:00:14]}  gxf5 {[%clk 0:00:39]} 36. Bh5 {[%clk 0:00:11]}  Rf6 {[%clk 0:00:37]} 37. f4 {[%clk 0:00:11]}  b5 {[%clk 0:00:37]} 38. axb5 {[%clk 0:00:10]}  axb5 {[%clk 0:00:38]} 39. Rb1 {[%clk 0:00:09]}  b4 {[%clk 0:00:38]} 40. Kf3 {[%clk 0:00:09]}  Rh6 {[%clk 0:00:37]} 41. e4 {[%clk 0:00:08]}  fxe4+ {[%clk 0:00:37]} 42. Kxe4 {[%clk 0:00:09]}  Kf8 {[%clk 0:00:36]} 43. Bg4 {[%clk 0:00:09]}  Rxh3 {[%clk 0:00:35]} 44. Bxh3 {[%clk 0:00:10]}  b3 {[%clk 0:00:35]} 45. Be6 {[%clk 0:00:08]}  b2 {[%clk 0:00:34]} 46. f5 {[%clk 0:00:09]}  Bf6 {[%clk 0:00:34]} 47. Kd3 {[%clk 0:00:09]}  Rb3+ {[%clk 0:00:33]} 48. Kd2 {[%clk 0:00:08]}  Rf3 {[%clk 0:00:32]} 49. Rg1 {[%clk 0:00:04]}  Rf2+ {[%clk 0:00:28]} 50. Kd3 {[%clk 0:00:03]}  Ke7 {[%clk 0:00:27]} 51. Rb1 {[%clk 0:00:03]}  Rf4 {[%clk 0:00:25]} 52. Rd1 {[%clk 0:00:03]}  Rd4+ {[%clk 0:00:25]} 0-1


[Site "https://www.chess.com"]